bitfinex-derivatives/quotes_ETHF0:USTF0_20241104
["timestamp","ask_amount","ask_price","bid_price","bid_amount"]
[1730762237869,4.42640689,2394.3,2394.1,0.41792]
[1730762238067,3.2078,2394.4,2393.8,1.0843045]
[1730762238267,40.8,2394.3,2393.9,1.0843045]
[1730762238472,40.8,2394.3,2393.8,1.61560674]
[1730762238473,40.8,2394.3,2394.0,1.0843045]
[1730762238671,40.8,2394.3,2394.2,0.4179]
[1730762238882,40.8,2394.3,2394.0,1.0843045]
[1730762239069,3.2078,2394.4,2394.3,0.41788]
[1730762239281,3.62568,2394.4,2394.1,1.5749045]
[1730762239577,3.62568,2394.4,2394.1,0.90851]
[1730762239771,3.62568,2394.4,2394.2,0.4179]
[1730762239966,3.2078,2394.4,2394.2,0.41789]
[1730762240179,3.2078,2394.4,2394.1,1.5749045]
[1730762240482,8.18531689,2394.3,2393.7,1.0843045]
[1730762240679,4.00851689,2394.3,2393.8,0.41796]
[1730762240972,0.41794,2394.0,2393.8,0.41796]
[1730762241380,0.41791,2394.2,2394.0,0.41792]
[1730762241681,0.4179,2394.2,2394.0,0.41792]
[1730762241878,3.2078,2394.4,2394.0,0.41793]
[1730762242174,0.41791,2394.2,2394.0,0.41793]
[1730762242576,0.4179,2394.3,2394.0,0.41793]
[1730762242775,0.4179,2394.2,2394.0,0.41793]
[1730762243376,3.2078,2394.4,2393.8,1.0843045]
[1730762243576,0.41791,2394.2,2394.0,0.41793]
[1730762243879,0.4179,2394.2,2394.0,0.41793]
[1730762244074,3.2078,2394.4,2393.8,1.0843045]
[1730762244270,3.62567,2394.4,2394.2,0.41789]
[1730762244472,3.2078,2394.4,2393.9,1.5727045]
[1730762244680,3.62567,2394.4,2394.2,0.41789]
[1730762244980,3.2078,2394.4,2394.3,0.41788]
[1730762245681,3.4168,2395.0,2394.3,7.3846]
[1730762245986,0.4178,2394.8,2394.6,0.41782]
[1730762246183,40.8,2395.0,2394.4,1.0843045]
[1730762246477,0.4178,2394.8,2394.7,0.41781]
[1730762246679,0.4178,2394.8,2394.6,0.41782]
[1730762247072,40.8,2395.0,2394.3,2.1289945]
[1730762247280,0.41778,2394.9,2394.7,0.4178]
[1730762247481,0.4178,2394.8,2394.7,0.4178]
[1730762247673,40.8,2395.0,2394.9,0.41778]
[1730762247877,40.8,2395.0,2394.7,0.41781]
[1730762248073,40.8,2395.0,2394.4,1.0843045]
[1730762248272,0.41782,2394.7,2394.6,0.41783]
[1730762248778,0.4971,2394.9,2394.3,3.2078]
[1730762248974,0.4178,2394.8,2394.7,0.4178]
[1730762249377,0.4178,2394.8,2394.6,0.41782]
[1730762250189,0.4971,2394.9,2394.3,4.2525]
[1730762250487,0.4178,2394.8,2394.7,0.41781]
[1730762250780,40.8,2395.0,2394.4,1.04467]
[1730762250984,41.21777,2395.0,2394.8,0.41779]
[1730762251183,0.4971,2395.4,2394.6,4.25238]
[1730762251378,0.41771,2395.3,2395.2,0.41772]
[1730762251575,0.4971,2395.4,2395.2,0.41772]
[1730762251576,0.9148,2395.4,2395.2,0.41772]
[1730762251776,40.8,2395.3,2395.2,0.41773]
[1730762252174,41.21771,2395.3,2395.2,0.41773]
[1730762252378,41.21771,2395.3,2394.9,3.2078]
[1730762252379,0.41773,2395.2,2395.0,0.41776]
[1730762252579,40.8,2395.3,2395.2,0.41773]
[1730762254275,0.90335,2395.7,2395.5,0.41767]
[1730762254481,0.4857,2395.7,2395.1,1.04436]
[1730762254684,3.2078,2395.8,2395.2,0.5103]
[1730762254883,40.8,2395.7,2395.6,0.41766]
[1730762255783,3.6783,2396.1,2395.8,0.41761]
[1730762255784,0.41759,2396.0,2395.8,0.41761]
[1730762255988,0.41761,2395.9,2395.7,0.41763]
[1730762256287,3.6783,2396.1,2395.5,3.2078]
[1730762256479,3.6783,2396.1,2395.5,0.41766]
[1730762256480,0.41764,2395.7,2395.5,0.41766]
[1730762256678,4.00851689,2395.9,2395.3,0.5103]
[1730762256878,40.8,2395.8,2395.5,0.41766]
[1730762257084,0.41764,2395.7,2395.5,0.41766]
[1730762257299,40.8,2395.8,2395.3,0.5103]
[1730762257483,0.41769,2395.4,2395.3,0.5103]
[1730762258287,0.41772,2395.3,2395.1,0.89474]
[1730762258684,0.41773,2395.2,2395.1,0.89474]
[1730762258877,0.41773,2395.2,2395.1,0.477]
[1730762259084,1.04418,2395.6,2395.0,0.41775]
[1730762259291,0.41774,2395.2,2395.0,0.41775]
[1730762259483,0.41772,2395.3,2394.9,3.7122]
[1730762259791,0.5113,2395.5,2394.9,4.12997]
[1730762259792,0.41775,2395.1,2394.9,4.12997]
[1730762259987,0.5113,2395.5,2394.9,3.2078]
[1730762260191,3.2078,2395.1,2394.2,4.6659]
[1730762260388,0.41786,2394.5,2394.3,0.41787]
[1730762260591,5.55242689,2395.0,2394.7,0.41781]
[1730762260592,0.4178,2394.8,2394.7,0.41781]
[1730762260786,0.4178,2394.8,2394.6,0.41782]
[1730762260983,0.4995,2395.0,2394.6,0.41782]
[1730762261290,40.8,2394.7,2394.6,0.41782]
[1730762261682,40.8,2394.7,2394.2,4.6659]
[1730762261885,40.8,2394.7,2394.2,3.7122]
[1730762262079,40.8,2394.7,2393.9,3.2078]
[1730762262280,40.8,2394.7,2394.1,1.0448]
[1730762262485,40.8,2394.7,2394.6,0.41783]
[1730762262984,40.8,2394.7,2394.5,0.41784]
[1730762262985,41.21782,2394.7,2394.5,0.41784]
[1730762263391,40.8,2394.7,2394.3,0.4634]
[1730762263585,41.21782,2394.7,2394.5,0.41784]
[1730762263791,0.41784,2394.6,2394.4,0.41786]
[1730762263993,40.8,2394.7,2394.3,0.4634]
[1730762264193,0.41784,2394.6,2394.4,0.41786]
[1730762264594,40.8,2394.7,2394.4,0.41786]
[1730762264795,0.41785,2394.5,2394.4,0.41786]
[1730762265102,0.41785,2394.5,2394.3,0.88127]
[1730762265596,40.8,2394.7,2394.3,0.4634]
[1730762265792,0.41784,2394.6,2394.3,0.4634]
[1730762265992,0.41786,2394.5,2394.3,0.88127]
[1730762266188,0.41787,2394.4,2394.3,0.88127]
[1730762266395,0.41786,2394.5,2394.3,0.88127]
[1730762266697,0.41785,2394.5,2394.4,0.41786]
[1730762266898,40.8,2394.7,2394.4,0.41786]
[1730762266899,0.41784,2394.6,2394.4,0.41786]
[1730762267296,0.41784,2394.6,2394.5,0.41785]
[1730762267498,40.8,2394.7,2394.3,0.4634]
[1730762267700,41.21782,2394.7,2394.6,0.41783]
[1730762267998,40.8,2394.7,2394.6,0.41783]
[1730762268201,0.4769,2394.9,2394.3,0.4634]
[1730762268396,3.2078,2395.1,2394.5,3.2078]
[1730762268698,41.21777,2395.0,2394.8,0.41779]
[1730762269316,40.8,2395.0,2394.6,0.4962]
[1730762269613,40.8,2395.0,2394.7,0.41781]
[1730762269614,0.41778,2394.9,2394.7,0.41781]
[1730762269813,3.25982118,2395.5,2394.6,0.4962]
[1730762270116,3.25982118,2395.5,2394.8,3.2078]
[1730762270409,0.41777,2395.0,2394.8,3.62559]
[1730762270812,3.2078,2395.3,2394.8,3.2078]
[1730762271003,3.2078,2395.3,2395.0,0.41775]
[1730762271004,0.41774,2395.2,2395.0,0.41775]
[1730762271206,0.41774,2395.2,2395.1,0.41774]
[1730762272399,0.41774,2395.2,2395.0,0.41774]
[1730762274611,0.41774,2395.2,2394.9,0.4761]
[1730762274612,41.2177,2395.4,2395.2,0.41771]
[1730762274810,40.8,2395.4,2395.3,0.41771]
[1730762275013,40.8,2395.4,2395.0,0.5092]
[1730762275207,3.77972118,2395.7,2395.3,0.41771]
[1730762275208,4.19736118,2395.7,2395.3,0.41771]
[1730762275413,4.19736118,2395.7,2395.1,3.2078]
[1730762275414,0.41772,2395.3,2395.1,0.41774]
[1730762275612,0.41778,2394.9,2394.8,3.2078]
[1730762276515,0.41777,2395.0,2394.9,0.41778]
[1730762276907,0.41777,2395.0,2394.8,3.62559]
[1730762277109,0.4731,2395.1,2394.8,3.2078]
[1730762277312,0.4731,2395.1,2394.9,0.41777]
[1730762277608,0.4731,2395.1,2394.8,3.2078]
[1730762277805,0.41778,2394.9,2394.8,3.2078]
[1730762278915,4.59378,2394.9,2394.8,3.2078]
[1730762279213,0.4178,2394.8,2394.2,0.41789]
[1730762279417,0.4178,2394.8,2394.1,3.62571]
[1730762279418,0.41789,2394.3,2394.1,3.62571]
[1730762280320,0.41787,2394.4,2394.1,3.2078]
[1730762280520,43.46765968,2395.2,2394.5,0.41783]
[1730762280521,0.41782,2394.7,2394.5,0.41783]
[1730762280817,3.6809,2395.1,2394.2,1.04476]
[1730762280818,0.41787,2394.4,2394.2,0.41789]
[1730762281218,1.04454,2394.7,2394.1,3.2078]
[1730762281425,0.4731,2395.1,2393.8,5.4139635]
[1730762281426,3.25982118,2394.4,2393.8,3.62576]
[1730762281614,3.25982118,2394.4,2393.6,1.61560674]
[1730762281615,0.9856,2394.3,2393.6,1.0843045]
[1730762281922,0.41794,2394.0,2393.5,4.8061045]
[1730762282117,0.41794,2394.0,2393.8,0.41796]
[1730762282318,40.8,2394.2,2394.1,0.41792]
[1730762282819,0.41794,2394.0,2393.8,3.2078]
[1730762283014,0.41794,2394.0,2393.8,3.62576]
[1730762283212,0.41794,2394.0,2393.8,0.41796]
[1730762283411,0.4797,2394.1,2393.5,5.3172045]
[1730762283610,40.8,2394.2,2394.1,0.41792]
[1730762283808,40.8,2394.2,2394.1,4.59472]
[1730762284015,0.89754,2394.6,2394.4,0.41785]
[1730762284212,0.41786,2394.5,2394.3,0.41787]
[1730762284410,40.8,2394.5,2394.0,2.6004345]
[1730762284612,41.21785,2394.5,2394.4,0.41787]
[1730762284811,40.8,2394.5,2394.4,0.41787]
[1730762285008,0.41785,2394.5,2394.3,0.41787]
[1730762285213,0.41785,2394.5,2394.1,0.473]
[1730762285421,0.41792,2394.1,2394.0,1.0843045]
[1730762285917,7.85454118,2394.1,2394.0,1.0843045]
[1730762286119,11.06234118,2394.1,2394.0,0.31982653]
[1730762286514,51.86234118,2394.1,2394.0,0.31982653]
[1730762286914,51.44442118,2394.1,2393.8,1.61560674]
[1730762287218,3.67777118,2393.9,2393.8,1.61560674]
[1730762287610,0.41803,2393.5,2393.2,3.48776674]
[1730762287810,0.41803,2393.5,2393.2,3.06970674]
[1730762288022,0.41803,2393.5,2393.3,0.41806]
[1730762288419,7.3862,2393.5,2393.2,1.61560674]
[1730762288726,3.25982118,2393.7,2393.2,1.61560674]
[1730762288727,0.4835,2393.7,2393.2,1.61560674]
[1730762288930,0.41802,2393.5,2393.3,0.41805]
[1730762290121,0.41802,2393.6,2393.3,0.41805]
[1730762290424,0.41802,2393.6,2393.1,3.2078]
[1730762290425,0.41802,2393.6,2393.4,0.41804]
[1730762290625,3.2078,2393.8,2393.2,0.9624]
[1730762290824,0.41799,2393.7,2393.5,0.41801]
[1730762291020,3.2078,2393.8,2393.2,0.9624]
[1730762291216,1.46297,2393.7,2393.2,0.4827]
[1730762291414,0.41805,2393.4,2393.2,0.90077]
[1730762292127,0.41806,2393.3,2393.2,0.4827]
[1730762292628,0.41804,2393.5,2393.3,0.41806]
[1730762293729,3.2078,2393.8,2393.3,0.41806]
[1730762294117,0.41802,2393.6,2393.3,0.41806]
[1730762294321,3.2078,2393.8,2393.4,0.4793]
[1730762294625,0.41796,2393.9,2393.7,0.41798]
[1730762294828,0.41796,2393.9,2393.7,0.41799]
[1730762295130,0.4179,2394.2,2393.7,3.2078]
[1730762295332,0.4179,2394.2,2394.0,0.41793]
[1730762295634,5.80618401,2394.3,2394.1,0.4179]
[1730762295827,2.59838401,2394.3,2394.1,0.4179]
[1730762296726,2.18049401,2394.3,2393.8,0.495]
[1730762297024,2.18049401,2394.3,2394.2,0.4179]
[1730762297231,44.4872,2394.6,2393.8,0.495]
[1730762297424,0.41795,2394.0,2393.8,0.41796]
[1730762298048,7.22194773,2394.3,2393.6,3.2078]
[1730762298225,0.41793,2394.1,2393.9,0.41795]
[1730762298423,44.4872,2394.6,2393.6,3.2078]
[1730762298624,44.4872,2394.6,2393.7,1.04498]
[1730762298818,0.41792,2394.1,2393.9,0.41794]
[1730762299625,0.41792,2394.1,2394.0,0.41794]
[1730762299835,0.41791,2394.2,2394.0,0.41794]
[1730762300032,44.4872,2394.6,2393.6,3.2078]
[1730762300330,0.41792,2394.1,2393.9,0.41795]
[1730762301024,5.05877773,2394.5,2393.6,3.2078]
[1730762301218,5.05877773,2394.5,2394.0,0.41794]
[1730762301219,0.41791,2394.2,2394.0,0.41794]
[1730762301931,0.41792,2394.1,2393.9,0.41794]
[1730762302725,0.41794,2394.0,2393.8,0.41796]
[1730762303034,0.41791,2394.2,2394.0,0.41793]
[1730762303229,3.2078,2394.3,2393.6,3.2078]
[1730762303425,0.41791,2394.2,2394.0,0.41793]
[1730762304529,3.2078,2394.3,2393.6,3.2078]
[1730762304731,0.41791,2394.2,2394.1,0.41792]
[1730762305128,3.2078,2394.3,2393.6,3.74039864]
[1730762305333,3.62569,2394.3,2394.1,0.41791]
[1730762305832,0.41788,2394.4,2394.2,0.41788]
[1730762306134,0.41786,2394.5,2394.3,0.41788]
[1730762306338,0.41787,2394.4,2394.3,0.41788]
[1730762306938,0.41786,2394.5,2394.3,0.41788]
[1730762307235,44.4872,2394.6,2394.3,0.41788]
[1730762307437,0.41785,2394.5,2394.3,0.41788]
[1730762307732,0.41787,2394.4,2394.2,0.41789]
[1730762308536,44.4872,2394.6,2394.0,0.9341]
[1730762309028,0.41787,2394.4,2394.2,0.41789]
[1730762309223,44.4872,2394.6,2394.2,0.41789]
[1730762309428,0.41786,2394.5,2394.3,0.41787]
[1730762309834,0.41787,2394.4,2394.2,0.41789]
[1730762310144,0.41786,2394.5,2394.0,0.9341]
[1730762310335,0.41787,2394.4,2394.3,0.41787]
[1730762310533,0.41786,2394.5,2394.3,0.41787]
[1730762310926,44.0078,2394.6,2394.0,0.9341]
[1730762311133,3.4168,2395.3,2394.5,0.41785]
[1730762311430,2.17723385,2395.6,2394.1,7.51525076]
[1730762311431,3.25925687,2394.9,2394.1,3.6907]
[1730762311638,3.25925687,2394.9,2394.1,4.6559]
[1730762311639,0.41786,2394.5,2394.1,4.6559]
[1730762311827,0.41782,2394.7,2394.5,0.41783]
[1730762312033,0.9817,2394.8,2394.6,0.41782]
[1730762312228,0.4178,2394.8,2394.2,1.04476]
[1730762312437,3.2078,2395.0,2394.5,0.41784]
[1730762312835,0.41783,2394.7,2394.5,0.41784]
[1730762313139,3.2078,2395.0,2394.2,1.04476]
[1730762313442,0.41782,2394.7,2394.5,0.41784]
[1730762314633,3.2078,2395.0,2394.4,3.2078]
[1730762314834,0.41782,2394.7,2394.5,0.41784]
[1730762315339,0.41784,2394.6,2394.4,3.62565]
[1730762315745,0.41784,2394.6,2394.5,0.41785]
[1730762316446,0.41784,2394.6,2394.2,0.4179]
[1730762316447,0.41789,2394.3,2394.2,0.4179]
[1730762316637,0.41788,2394.4,2394.1,3.2078]
[1730762316836,0.41788,2394.4,2394.2,0.41789]
[1730762317135,40.8,2394.3,2394.2,0.41789]
[1730762318140,40.8,2394.3,2394.1,3.62571]
[1730762318338,41.21789,2394.3,2394.2,0.4179]
[1730762318738,40.8,2394.3,2394.1,3.2078]
[1730762318943,0.4179,2394.2,2394.1,3.2078]
[1730762319442,0.4179,2394.2,2394.1,3.62572]
[1730762319640,0.9496,2394.5,2394.1,3.2078]
[1730762319945,1.0445,2394.8,2394.1,3.2078]
[1730762320246,0.41787,2394.4,2394.3,0.41788]
[1730762320642,0.41784,2394.6,2394.4,0.41785]
[1730762320837,40.8,2394.7,2394.4,0.41785]
[1730762321244,0.41785,2394.5,2394.4,0.41785]
[1730762322245,0.41785,2394.5,2394.1,3.7036]
[1730762322444,0.41785,2394.5,2394.3,0.41788]
[1730762322644,0.41784,2394.6,2394.4,0.41786]
[1730762323045,40.8,2394.7,2394.4,0.41786]
[1730762323344,0.41788,2394.3,2394.2,0.41789]
[1730762323547,0.41786,2394.5,2394.1,3.7036]
[1730762323744,0.41786,2394.5,2394.3,0.41787]
[1730762324347,0.41787,2394.4,2394.1,3.7036]
[1730762324551,0.41787,2394.4,2394.3,0.41788]
[1730762324938,0.41786,2394.5,2394.4,0.41786]
[1730762325334,44.0078,2394.7,2394.1,3.7036]
[1730762325538,44.0078,2394.7,2394.2,0.4179]
[1730762325539,0.41788,2394.4,2394.2,0.4179]
[1730762325946,44.0078,2394.7,2394.1,3.7036]
[1730762326140,0.41786,2394.5,2394.4,0.41786]
[1730762326744,0.41786,2394.5,2394.1,3.7036]
[1730762326745,44.0078,2394.7,2394.1,4.74839]
[1730762326950,40.8,2394.7,2394.2,1.57836636]
[1730762327257,40.8,2394.7,2394.6,0.41783]
[1730762328147,41.21781,2394.7,2394.6,0.41783]
[1730762328650,40.8,2394.7,2394.5,0.41784]
[1730762328842,40.8,2394.7,2394.3,0.9739]
[1730762329044,41.21782,2394.7,2394.6,0.41783]
[1730762329239,41.21782,2394.7,2394.3,0.9739]
[1730762329240,40.8,2394.7,2394.5,0.41784]
[1730762329438,40.8,2394.7,2394.3,0.9739]
[1730762329439,0.41784,2394.6,2394.3,0.9739]
[1730762329850,41.21783,2394.7,2394.5,0.41785]
[1730762330046,0.41783,2394.6,2394.3,0.9739]
[1730762330356,44.05925687,2394.7,2394.1,3.2078]
[1730762330552,0.41795,2393.9,2393.8,3.2078]
[1730762331050,4.59555,2393.9,2393.8,3.2078]
[1730762331345,45.39555,2393.9,2393.8,3.2078]
[1730762331550,45.39555,2393.9,2393.7,0.41798]
[1730762331551,0.41797,2393.8,2393.7,0.41798]
[1730762331753,40.8,2393.9,2393.8,0.41797]
[1730762332849,0.41793,2394.1,2393.6,1.04502]
[1730762333046,0.41793,2394.1,2393.7,0.53387754]
[1730762333245,40.8,2394.0,2393.6,1.04502]
[1730762333452,40.8,2394.0,2393.9,0.41794]
[1730762333746,0.41793,2394.1,2393.9,0.41794]
[1730762334345,41.21793,2394.1,2393.9,0.41794]
[1730762335355,40.8,2394.1,2393.5,6.35903367]
[1730762335553,0.41792,2394.1,2394.0,0.41794]
[1730762336053,0.41792,2394.1,2394.0,0.41793]
[1730762336558,0.41792,2394.2,2394.0,0.41793]
[1730762336851,0.41792,2394.2,2393.7,1.62868367]
[1730762337047,41.21789,2394.3,2394.1,0.4179]
[1730762337358,0.4179,2394.2,2394.0,0.41793]
[1730762337651,0.41793,2394.1,2393.9,0.41794]
[1730762338052,0.4179,2394.2,2393.9,0.41794]
[1730762338248,0.41792,2394.1,2394.0,0.95583381]
[1730762338655,40.8,2394.3,2393.9,0.4903]
[1730762338954,0.41792,2394.1,2394.0,0.95604824]
[1730762339256,0.41792,2394.1,2394.0,0.53811824]
[1730762339551,0.41792,2394.1,2394.0,0.95605824]
[1730762340443,0.4179,2394.2,2394.0,0.53811824]
[1730762340644,0.4179,2394.2,2394.1,0.95603824]
[1730762340853,40.8,2394.3,2394.2,0.4179]
[1730762341043,0.41788,2394.3,2394.2,0.53811824]
[1730762341553,41.21788,2394.3,2394.2,0.53811824]
[1730762341952,41.21788,2394.3,2394.2,0.95601824]
[1730762342147,40.8,2394.3,2394.2,0.95601824]
[1730762342944,2.17723385,2394.6,2394.5,0.41785]
[1730762343153,3.2078,2394.7,2394.1,2.67348367]
[1730762343352,0.41787,2394.5,2394.3,0.41788]
[1730762343551,41.21787,2394.5,2394.4,0.95627202]
[1730762343753,41.21787,2394.5,2394.4,0.53840202]
[1730762344665,40.8,2394.5,2394.4,0.95627202]
[1730762344957,41.21785,2394.5,2394.4,0.95627202]
[1730762345347,41.21785,2394.5,2394.4,0.53844927]
[1730762345552,40.8,2394.5,2394.4,0.53844927]
[1730762345854,40.8,2394.5,2394.4,0.95631927]
[1730762346558,40.8,2394.5,2394.4,0.95627846]
[1730762346946,2.17723385,2394.9,2394.4,4.71440846]
[1730762347150,2.17723385,2394.9,2394.3,3.2078]
[1730762347151,2.17723385,2394.9,2394.6,0.41782]
[1730762347358,2.17723385,2394.9,2394.7,0.41781]
[1730762347670,40.8,2394.8,2394.7,0.41781]
[1730762348052,40.8,2394.8,2394.7,0.95608209]
[1730762348763,2.59493385,2395.4,2395.2,0.41773]
[1730762349059,40.8,2395.3,2395.2,0.41773]
[1730762349261,40.8,2395.3,2395.2,0.95892934]
[1730762349654,5.38503385,2395.9,2395.2,14.83840625]
[1730762349858,0.41761,2395.9,2395.7,0.41763]
[1730762350049,40.8,2395.8,2395.7,0.41763]
[1730762350258,40.8,2395.8,2395.7,0.95810403]
[1730762350448,40.8,2395.8,2395.7,0.41763]
[1730762350858,3.2078,2396.1,2395.7,4.1744]
[1730762351055,3.2078,2396.1,2395.6,0.9826]
[1730762351261,0.41759,2396.0,2395.8,0.41761]
[1730762351461,3.62538,2396.1,2395.7,0.41764]
[1730762351764,0.41759,2396.0,2395.8,0.41761]
[1730762352259,3.62537,2396.1,2395.9,0.41759]
[1730762352956,0.4949,2396.2,2395.6,7.44965687]
[1730762353160,2.17723385,2396.3,2395.9,3.2078]
[1730762353356,5.43649072,2396.3,2395.6,4.1904]
[1730762353556,0.41759,2396.0,2395.7,0.41763]
[1730762354061,0.41758,2396.1,2395.8,0.41761]
[1730762354256,40.8,2396.1,2395.6,4.1904]
[1730762354457,40.8,2396.1,2396.0,0.41759]
[1730762354862,40.8,2396.1,2395.9,0.4176]
[1730762355172,40.8,2396.1,2396.0,0.41759]
[1730762356060,2.17723385,2396.3,2396.1,0.41756]
[1730762356256,2.17723385,2396.3,2396.2,0.41755]
[1730762356861,2.17723385,2396.3,2396.1,0.41756]
[1730762357060,2.17723385,2396.3,2395.9,3.2078]
[1730762357260,2.17723385,2396.3,2396.2,0.41755]
[1730762357570,2.17723385,2396.3,2396.2,6.88460687]
[1730762357863,3.81015924,2396.9,2396.7,0.41746]
[1730762358359,3.81015924,2396.9,2396.7,4.58946]
[1730762358562,3.81015924,2396.9,2396.7,7.84871687]
[1730762359057,2.49225078,2396.8,2396.7,8.35291687]
[1730762359262,3.81015924,2396.9,2396.8,0.41745]
[1730762359566,3.81015924,2396.9,2396.8,9.30170687]
[1730762359763,1.37393924,2396.9,2396.8,9.30170687]
[1730762359966,4.35446771,2397.1,2396.8,9.30170687]
[1730762359967,4.35446771,2397.1,2397.0,0.41741]
[1730762360168,4.35446771,2397.1,2397.0,3.62521]
[1730762360371,4.35446771,2397.1,2397.0,7.79721]
[1730762361267,4.89877617,2397.2,2397.0,12.20914788]
[1730762361465,5.44308463,2397.4,2397.3,0.41736]
[1730762361656,5.44308463,2397.4,2397.3,3.62516]
[1730762361856,4.54670463,2397.4,2397.3,7.79636]
[1730762362067,5.96243912,2398.0,2397.9,0.41726]
[1730762362259,5.96243912,2398.0,2397.9,4.58766]
[1730762363961,41.72438,2398.4,2397.9,4.58766]
[1730762363962,41.72438,2398.4,2397.9,4.1704]
[1730762364168,3.6804,2398.6,2398.1,3.62501]
[1730762364356,0.4726,2398.6,2398.1,3.2078]
[1730762364759,3.2078,2398.4,2397.4,3.25925687]
[1730762364965,3.25925687,2398.3,2397.6,3.6251]
[1730762365171,0.41728,2397.8,2397.5,0.41731]
[1730762365468,40.8,2398.2,2397.4,4.71125687]
[1730762365669,0.41727,2397.8,2397.5,0.41732]
[1730762365967,0.41727,2397.9,2397.6,0.4173]
[1730762366155,0.41724,2398.0,2397.6,0.4173]
[1730762366359,0.92127,2397.8,2397.6,0.4173]
[1730762366558,0.504,2397.8,2397.3,3.2078]
[1730762366755,0.41732,2397.6,2397.3,3.2078]
[1730762367158,0.41732,2397.6,2397.3,3.62515]
[1730762367362,0.4788,2397.5,2397.4,0.41734]
[1730762367762,3.7118,2397.8,2397.7,0.41729]
[1730762367962,0.504,2397.8,2397.7,0.41729]
[1730762368664,0.504,2397.8,2397.6,0.4173]
[1730762368967,0.504,2397.8,2397.4,3.25925687]
[1730762369175,0.4788,2398.0,2397.5,4.1712]
[1730762369468,0.4788,2398.0,2397.6,3.2078]
[1730762369768,0.4788,2398.0,2397.9,0.41726]
[1730762371864,40.8,2398.2,2398.1,0.41722]
[1730762372069,0.41719,2398.3,2398.1,0.41722]
[1730762372367,0.90088,2398.4,2398.2,0.4172]
[1730762372566,40.8,2398.3,2398.2,0.4172]
[1730762373062,0.4837,2398.4,2397.9,6.46705687]
[1730762373266,0.4837,2398.4,2397.6,3.25925687]
[1730762373459,3.2078,2398.3,2397.6,3.25925687]
[1730762373669,41.21721,2398.2,2398.0,0.41723]
[1730762373865,40.8,2398.2,2398.1,0.41722]
[1730762374966,0.4837,2398.4,2397.9,3.25925687]
[1730762375166,0.90087,2398.4,2398.3,0.41719]
[1730762375369,0.90087,2398.4,2398.2,0.41719]
[1730762375570,41.70087,2398.4,2398.2,0.41719]
[1730762375771,41.2837,2398.4,2398.2,0.41719]
[1730762375970,0.41719,2398.3,2398.1,0.41721]
[1730762376572,41.2837,2398.4,2398.2,0.4172]
[1730762376875,41.2837,2398.4,2397.9,3.25925687]
[1730762377078,0.41719,2398.3,2398.2,0.4172]
[1730762377374,41.70088,2398.4,2398.2,0.4172]
[1730762377570,0.41719,2398.3,2398.2,0.4172]
[1730762378070,0.41727,2397.9,2397.7,0.41728]
[1730762378370,8.42037,2398.3,2398.0,0.41723]
[1730762378371,3.2078,2398.3,2398.0,0.41723]
[1730762378569,3.2078,2398.3,2397.6,3.25925687]
[1730762378773,0.41723,2398.1,2397.9,0.41724]
[1730762378970,3.2078,2398.3,2397.6,3.25925687]
[1730762379176,3.2078,2398.3,2398.0,0.41723]
[1730762379367,0.41731,2397.6,2397.5,3.2078]
[1730762379567,2.08612,2398.1,2397.5,3.2078]
[1730762379568,1.04306,2398.1,2397.6,0.4173]
[1730762379773,0.91425,2398.0,2397.9,0.41726]
[1730762380075,0.497,2398.0,2397.9,0.41726]
[1730762380277,0.91424,2398.0,2397.9,0.41726]
[1730762380475,0.497,2398.0,2397.6,3.25925687]
[1730762380676,0.497,2398.0,2397.9,0.41726]
[1730762382471,3.2078,2398.3,2397.8,3.2078]
[1730762382666,0.41724,2398.0,2397.9,0.41725]
[1730762383071,0.4669,2398.2,2397.8,3.2078]
[1730762383277,0.88411,2398.2,2398.1,0.41722]
[1730762383472,0.88411,2398.2,2398.0,0.41722]
[1730762383672,0.88411,2398.2,2398.1,0.41722]
[1730762384069,0.4669,2398.2,2398.1,4.58682]
[1730762384372,41.70087,2398.4,2398.3,0.41719]
[1730762384684,0.41719,2398.3,2398.2,0.4172]
[1730762384979,0.4172,2398.3,2398.1,0.41721]
[1730762385188,0.90087,2398.4,2397.9,2.42413]
[1730762385475,0.4837,2398.4,2398.1,3.2078]
[1730762385775,0.4837,2398.4,2398.0,0.41723]
[1730762385979,0.4172,2398.3,2398.1,0.41721]
[1730762386282,0.4172,2398.3,2398.2,0.4172]
[1730762386573,0.41721,2398.2,2397.9,1.381]
[1730762386777,0.4172,2398.3,2398.2,0.4172]
[1730762387374,0.41719,2398.3,2398.1,0.41721]
[1730762387581,0.41719,2398.3,2398.2,0.4172]
[1730762388673,0.41724,2398.0,2397.9,5.00605]
[1730762388971,1.52665,2398.4,2397.9,3.62505]
[1730762389171,4.73445,2398.4,2397.9,3.62505]
[1730762389372,0.41724,2398.0,2397.9,3.62505]
[1730762390969,0.41724,2398.0,2397.9,3.2078]
[1730762391483,0.41724,2398.0,2397.9,3.62506]
[1730762392380,3.6915,2398.4,2397.9,4.61350905]
[1730762392578,0.41724,2398.0,2397.9,3.62505]
[1730762392776,0.41724,2398.0,2397.9,5.03090788]
[1730762392985,3.6915,2398.4,2397.9,4.61365788]
[1730762393279,0.41724,2398.0,2397.9,3.62504]
[1730762393587,0.41724,2398.0,2397.9,7.76807103]
[1730762393781,0.41724,2398.0,2397.9,5.59649281]
[1730762393977,3.69115118,2398.4,2397.9,5.59649281]
[1730762394177,0.41722,2398.1,2398.0,3.58485799]
[1730762394589,0.41722,2398.1,2398.0,8.27170136]
[1730762394792,0.41722,2398.1,2398.0,6.80474223]